bitfinex/quotes_BTCUSD_20250716
["timestamp","ask_amount","ask_price","bid_price","bid_amount"]
[1752689178251,0.003,119320.0,119310.0,1.22670238]
[1752689178478,0.003,119320.0,119310.0,5.39409738]
[1752689179233,0.00255113,119330.0,119320.0,0.55295811]
[1752689179445,0.00255113,119330.0,119320.0,4.08989226]
[1752689179640,0.00255113,119330.0,119320.0,4.09303226]
[1752689179867,0.00255113,119330.0,119320.0,0.8805198]
[1752689180110,0.00255113,119330.0,119320.0,1.0497998]
[1752689180330,0.00255113,119330.0,119320.0,6.0497998]
[1752689180546,0.00046,119340.0,119330.0,0.95975842]
[1752689180766,0.00096365,119340.0,119330.0,5.66495224]
[1752689181208,0.00934257,119340.0,119330.0,0.60679277]
[1752689181431,0.00096365,119340.0,119330.0,4.50558224]
[1752689181660,0.00096365,119340.0,119330.0,4.52658224]
[1752689181921,0.00096365,119340.0,119330.0,4.54698224]
[1752689182348,0.00096365,119340.0,119330.0,6.2195687]
[1752689182586,0.00096365,119340.0,119330.0,5.83695224]
[1752689182802,0.00096365,119340.0,119330.0,6.2225687]
[1752689183024,0.00096365,119340.0,119330.0,5.83695224]
[1752689184133,0.003,119350.0,119340.0,0.57412579]
[1752689184381,0.003,119350.0,119340.0,5.66179607]
[1752689184646,0.003,119350.0,119340.0,5.66493607]
[1752689184891,0.003,119350.0,119340.0,5.81493607]
[1752689185718,0.003,119350.0,119340.0,5.23755007]
[1752689185929,0.003,119350.0,119340.0,5.25775007]
[1752689186363,0.003,119350.0,119340.0,5.79473607]
[1752689186593,0.003,119370.0,119360.0,0.19269351]
[1752689186816,0.00315101,119370.0,119360.0,6.34834025]
[1752689187042,0.0104,119380.0,119370.0,0.53267737]
[1752689187285,0.0034,119390.0,119380.0,0.77126122]
[1752689187536,0.0032,119410.0,119400.0,0.69100379]
[1752689187537,0.01674809,119410.0,119400.0,0.69100379]
[1752689187746,0.01891851,119410.0,119400.0,1.56547528]
[1752689187961,0.02744336,119410.0,119400.0,1.76026443]
[1752689188297,0.00852492,119410.0,119400.0,1.77177914]
[1752689188525,0.00015098,119410.0,119400.0,1.93881914]
[1752689188807,0.17883549,119430.0,119420.0,0.00837366]
[1752689188983,0.01137247,119430.0,119420.0,3.35926894]
[1752689189211,0.01137247,119430.0,119420.0,2.71788721]
[1752689189212,0.19558078,119430.0,119420.0,2.71788721]
[1752689189438,0.003,119430.0,119420.0,3.22777397]
[1752689189673,0.01137254,119430.0,119420.0,5.77124697]
[1752689189909,0.03649072,119430.0,119420.0,5.77124697]
[1752689190189,0.03749072,119430.0,119420.0,5.76287366]
[1752689190447,0.19658106,119430.0,119420.0,5.19868541]
[1752689190707,0.02074557,119430.0,119420.0,5.62124697]
[1752689190963,0.01137142,119450.0,119440.0,0.19256445]
[1752689191233,0.19569963,119450.0,119440.0,2.0511407]
[1752689191507,0.01152216,119450.0,119440.0,2.40788473]
[1752689191743,0.03663663,119450.0,119440.0,2.3911407]
[1752689191997,0.18732821,119450.0,119440.0,2.22369268]
[1752689192275,0.00315095,119450.0,119440.0,5.80838713]
[1752689192502,0.03126514,119450.0,119440.0,4.48417213]
[1752689192772,0.03663726,119450.0,119440.0,2.88518642]
[1752689192995,0.01989358,119450.0,119440.0,2.9029308]
[1752689193194,0.01989358,119450.0,119440.0,4.25834471]
[1752689193397,0.00315095,119450.0,119440.0,4.26148471]
[1752689194042,0.00315095,119450.0,119440.0,3.50627571]
[1752689194247,0.01152209,119450.0,119440.0,5.03963271]
[1752689194453,0.03043472,119450.0,119440.0,5.03963271]
[1752689194654,0.01369209,119450.0,119440.0,5.03963271]
[1752689194934,0.02206344,119450.0,119440.0,5.03963271]
[1752689195138,0.01369209,119450.0,119440.0,4.85979271]
[1752689195383,0.01152209,119450.0,119440.0,5.62960671]
[1752689195802,0.01152209,119450.0,119440.0,5.24896271]
[1752689196331,0.01152209,119450.0,119440.0,5.62960671]
[1752689196585,0.00315095,119450.0,119440.0,5.63274671]
[1752689196808,0.003,119470.0,119460.0,0.53253256]
[1752689197023,0.00350306,119470.0,119460.0,6.26312122]
[1752689197242,0.00350306,119470.0,119460.0,5.87750476]
[1752689197426,0.0118728,119470.0,119460.0,5.87436476]
[1752689197692,0.02024268,119470.0,119460.0,5.66379976]
[1752689197914,0.04016293,119470.0,119460.0,5.39065633]
[1752689198129,0.21374008,119470.0,119460.0,0.44999479]
[1752689198341,0.2053702,119470.0,119460.0,0.24218479]
[1752689198563,0.2053702,119470.0,119460.0,0.42734663]
[1752689198781,0.2137405,119470.0,119460.0,0.76734677]
[1752689199053,0.19700025,119470.0,119460.0,0.76734677]
[1752689199265,0.19700025,119470.0,119460.0,0.59155579]
[1752689199266,0.18862995,119470.0,119460.0,0.59155579]
[1752689199478,0.18862995,119470.0,119460.0,0.7673467]
[1752689199694,0.18862995,119470.0,119460.0,0.58318479]
[1752689200336,0.20852995,119470.0,119460.0,0.58318479]
[1752689200628,0.61354641,119470.0,119460.0,0.45099479]
[1752689200843,0.22792995,119470.0,119460.0,0.36548451]
[1752689201063,0.22792995,119470.0,119460.0,0.72076251]
[1752689201291,0.61354641,119470.0,119460.0,0.36548451]
[1752689201531,0.62191671,119470.0,119460.0,0.58994828]
[1752689201755,0.19700025,119470.0,119460.0,0.76573933]
[1752689201982,0.37784025,119470.0,119460.0,0.58894828]
[1752689202200,0.19800025,119470.0,119460.0,0.58894828]
[1752689202422,0.19800025,119470.0,119460.0,0.76473926]
[1752689202598,0.19800025,119470.0,119460.0,0.58894828]
[1752689202850,0.00450306,119470.0,119460.0,5.61804249]
[1752689203078,0.00450306,119470.0,119460.0,5.67175149]
[1752689203306,0.00450306,119470.0,119460.0,4.45912349]
[1752689203967,0.00450306,119470.0,119460.0,5.42890849]
[1752689204427,0.01287273,119470.0,119460.0,3.84864249]
[1752689204641,0.02124247,119470.0,119460.0,3.84864249]
[1752689204870,0.2145005,119470.0,119460.0,1.38396626]
[1752689205106,0.2145005,119470.0,119460.0,1.23867412]
[1752689205331,0.20613048,119470.0,119460.0,1.18021326]
[1752689205551,0.20613048,119470.0,119460.0,1.1364007]
[1752689205768,0.20613048,119470.0,119460.0,1.13640077]
[1752689205999,0.03872416,119470.0,119460.0,2.46523228]
[1752689206215,0.2145005,119470.0,119460.0,2.16569442]
[1752689206422,0.01904391,119470.0,119460.0,2.17406493]
[1752689206634,0.03578346,119470.0,119460.0,2.17406493]
[1752689206845,0.01904391,119470.0,119460.0,0.84147193]
[1752689207057,0.02741372,119470.0,119460.0,5.62027993]
[1752689207265,0.0357836,119470.0,119460.0,5.62027993]
[1752689207707,0.01904391,119470.0,119460.0,5.62027993]
[1752689207925,0.01904391,119470.0,119460.0,5.84345193]
[1752689208384,0.03578339,119470.0,119460.0,5.77847793]
[1752689208621,0.03795339,119470.0,119460.0,5.76567993]
[1752689208854,0.04632334,119470.0,119460.0,3.29987593]
[1752689209078,0.04632327,119470.0,119460.0,3.27941142]
[1752689209301,0.01904391,119470.0,119460.0,3.19557493]
[1752689209517,0.01887649,119470.0,119460.0,3.19557493]
[1752689209741,0.00433564,119470.0,119460.0,3.19557493]
[1752689210000,0.00433564,119470.0,119460.0,5.88716193]
[1752689210225,0.002,119490.0,119480.0,0.19249999]
[1752689210442,0.00215083,119490.0,119480.0,2.31956427]
[1752689210691,0.00432083,119490.0,119480.0,2.12045027]
[1752689210912,0.00432083,119490.0,119480.0,0.46023027]
[1752689211134,0.00432083,119490.0,119480.0,5.10034027]
[1752689211573,0.00432083,119490.0,119480.0,5.46335027]
[1752689211574,0.00215083,119490.0,119480.0,5.46335027]
[1752689211834,6e-05,119500.0,119490.0,0.70228388]
[1752689212044,6e-05,119500.0,119490.0,5.78779416]
[1752689212257,6e-05,119500.0,119490.0,5.79100416]
[1752689212476,6e-05,119500.0,119490.0,5.92792916]
[1752689212716,0.0022,119510.0,119500.0,0.53246777]
[1752689212938,0.0022,119510.0,119500.0,4.66965905]
[1752689213148,0.01056687,119510.0,119500.0,5.61797805]
[1752689213366,0.0022,119510.0,119500.0,5.61797805]
[1752689213576,0.01056687,119510.0,119500.0,5.61797805]
[1752689214054,0.0022,119510.0,119500.0,5.62118805]
[1752689214271,0.01893395,119510.0,119500.0,5.62118805]
[1752689214479,0.03566846,119510.0,119500.0,5.61995805]
[1752689214704,0.21138597,119510.0,119500.0,4.49263628]
[1752689214919,0.59155218,119510.0,119500.0,0.71199928]
[1752689215132,0.20593572,119510.0,119500.0,0.88309128]
[1752689215625,0.62988218,119510.0,119500.0,0.42551028]
[1752689215841,0.24426572,119510.0,119500.0,0.57162628]
[1752689216273,0.62988218,119510.0,119500.0,0.57162628]
[1752689216683,0.62988218,119510.0,119500.0,0.55114028]
[1752689216944,0.62988218,119510.0,119500.0,0.42551028]
[1752689217171,0.01673983,119470.0,119460.0,0.27924048]
[1752689217383,0.01673983,119470.0,119460.0,5.90112324]
[1752689217653,0.01673983,119470.0,119460.0,5.56112324]
[1752689217930,0.01673983,119470.0,119460.0,5.90112324]
[1752689218195,0.19545603,119470.0,119460.0,2.41316104]
[1752689218424,0.16740604,119470.0,119460.0,3.40945709]
[1752689218639,0.1757762,119470.0,119460.0,3.69966802]
[1752689218855,0.1757762,119470.0,119460.0,0.63418002]
[1752689219076,0.1757762,119470.0,119460.0,2.70172304]
[1752689219287,0.1757762,119470.0,119460.0,2.79602009]
[1752689219522,0.1757762,119470.0,119460.0,4.88668346]
[1752689219744,0.1757762,119470.0,119460.0,4.88668353]
[1752689219965,0.1757762,119470.0,119460.0,4.69415104]
[1752689220182,0.1757762,119470.0,119460.0,1.92631909]
[1752689220183,0.2161762,119470.0,119460.0,1.92631909]
[1752689220402,0.1757762,119470.0,119460.0,1.93469009]
[1752689220635,0.21275705,119470.0,119460.0,1.76189904]
[1752689220863,0.39179705,119470.0,119460.0,1.76189904]
[1752689221087,0.79691351,119470.0,119460.0,1.29888204]
[1752689221313,0.41129705,119470.0,119460.0,0.03087876]
[1752689221764,0.41101705,119470.0,119460.0,0.03087876]
[1752689221975,0.79663351,119470.0,119460.0,0.03087876]
[1752689222194,0.79663351,119470.0,119460.0,0.02787876]
[1752689222635,0.79663351,119470.0,119460.0,0.00315083]
[1752689222876,0.23991783,119450.0,119440.0,0.343]
[1752689223097,0.80703429,119450.0,119440.0,0.00350306]
[1752689223367,0.42133783,119450.0,119440.0,0.00350306]
[1752689223587,0.62847429,119450.0,119440.0,0.50350306]
[1752689223796,0.80683429,119450.0,119440.0,0.34350306]
[1752689224018,0.24285783,119450.0,119440.0,0.34350306]
[1752689224261,0.80667429,119450.0,119440.0,0.34350306]
[1752689224905,0.80667429,119450.0,119440.0,0.36840213]
[1752689225119,0.42109783,119450.0,119440.0,0.45391241]
[1752689225340,0.42409783,119450.0,119440.0,0.45391241]
[1752689225601,0.42109783,119450.0,119440.0,0.45391241]
[1752689225811,0.42309783,119450.0,119440.0,0.45391241]
[1752689226051,0.24485783,119450.0,119440.0,1.87817341]
[1752689226265,0.42277783,119450.0,119440.0,0.82506541]
[1752689226486,0.42277783,119450.0,119440.0,0.45391241]
[1752689226709,0.42261783,119450.0,119440.0,0.62331741]
[1752689226926,0.80823429,119450.0,119440.0,0.60851741]
[1752689228049,0.80823429,119450.0,119440.0,0.36840213]
[1752689228252,0.42261783,119450.0,119440.0,0.36840213]
[1752689228464,0.80823429,119450.0,119440.0,0.36840213]
[1752689228673,0.42261783,119450.0,119440.0,0.36840213]
[1752689229081,0.80823429,119450.0,119440.0,0.36840213]
[1752689229507,0.81040429,119450.0,119440.0,0.36840213]
[1752689230134,0.42478783,119450.0,119440.0,0.36840213]
[1752689230349,0.81040429,119450.0,119440.0,0.36840213]
[1752689231921,1.19602075,119450.0,119440.0,0.00350306]
[1752689232376,0.42366783,119450.0,119440.0,0.00350306]
[1752689232603,0.80928429,119450.0,119440.0,0.00350306]
[1752689232846,1.19490075,119450.0,119440.0,0.00350306]
[1752689233060,1.19290075,119450.0,119440.0,0.00350306]
[1752689233286,1.19294075,119450.0,119440.0,0.00350306]
[1752689233521,0.81132429,119450.0,119440.0,0.00350306]
[1752689233961,0.42570783,119450.0,119440.0,0.00350306]
[1752689234177,0.81132429,119450.0,119440.0,0.00350306]
[1752689234855,1.19694075,119450.0,119440.0,0.00350306]
[1752689235082,0.23844867,119430.0,119420.0,0.003]
[1752689235295,0.80226513,119430.0,119420.0,0.00315095]
[1752689235519,0.80541513,119430.0,119420.0,0.00315095]
[1752689236578,0.80641513,119430.0,119420.0,0.00315095]
[1752689236801,0.41927867,119430.0,119420.0,0.00315095]
[1752689237006,0.80689513,119430.0,119420.0,0.00315095]
[1752689238240,0.89240541,119430.0,119420.0,0.00315095]
[1752689238683,0.50678895,119430.0,119420.0,0.00315095]
[1752689238914,0.89240541,119430.0,119420.0,0.00315095]
[1752689239572,0.50678895,119430.0,119420.0,0.00315095]
[1752689239813,0.71688541,119430.0,119420.0,0.00315095]
[1752689240028,0.80625513,119430.0,119420.0,0.00315095]
[1752689241308,0.63137513,119430.0,119420.0,0.00315095]
[1752689241741,0.80597513,119430.0,119420.0,0.00315095]
[1752689241968,0.42015867,119430.0,119420.0,0.00315095]
[1752689242187,0.80577513,119430.0,119420.0,0.00315095]
[1752689242431,0.80557513,119430.0,119420.0,0.00315095]
[1752689242643,0.80465513,119430.0,119420.0,0.00315095]
[1752689243964,0.41903867,119430.0,119420.0,0.00315095]
[1752689244177,1.10075513,119430.0,119420.0,0.00315095]
[1752689244586,1.10047513,119430.0,119420.0,0.00315095]
[1752689245013,0.92655513,119430.0,119420.0,0.00315095]
[1752689245239,1.10047513,119430.0,119420.0,0.00315095]
[1752689245664,1.18598541,119430.0,119420.0,0.00315095]
[1752689246795,1.01206541,119430.0,119420.0,0.00315095]
[1752689247028,1.18562541,119430.0,119420.0,0.00315095]
[1752689247484,0.92655513,119430.0,119420.0,0.00315095]
[1752689247714,1.09983513,119430.0,119420.0,0.00315095]
[1752689247941,0.71421867,119430.0,119420.0,0.00315095]
[1752689248179,1.09983513,119430.0,119420.0,0.00315095]
[1752689248586,0.31392571,119430.0,119420.0,0.62915109]
[1752689248815,0.002,119430.0,119420.0,5.74041278]
[1752689249038,0.01874515,119430.0,119420.0,5.91341278]
[1752689249270,0.02491332,119430.0,119420.0,5.91341278]
[1752689249484,0.03328593,119430.0,119420.0,5.81683178]
[1752689249695,0.01037247,119430.0,119420.0,5.64720578]
[1752689249913,0.01874508,119430.0,119420.0,5.91341278]
[1752689250159,0.20074895,119430.0,119420.0,2.33918364]
[1752689250376,0.19874895,119430.0,119420.0,0.43169123]
[1752689250589,0.58436541,119430.0,119420.0,0.43169123]
[1752689250838,0.19874895,119430.0,119420.0,0.43169123]
[1752689251048,0.37130895,119430.0,119420.0,0.08866123]
[1752689251262,0.75692541,119430.0,119420.0,0.08866123]
[1752689251685,0.75692541,119430.0,119420.0,0.09266123]
[1752689251892,0.37130895,119430.0,119420.0,0.08866123]
[1752689252314,0.37130895,119430.0,119420.0,0.09166123]
[1752689252972,0.75692541,119430.0,119420.0,0.09166123]
[1752689253187,0.19874895,119430.0,119420.0,0.27054116]
[1752689253409,0.37038895,119430.0,119420.0,0.09469123]
[1752689253629,0.37038895,119430.0,119420.0,0.27054102]
[1752689253851,0.37038895,119430.0,119420.0,0.09469123]
[1752689254076,0.19874895,119430.0,119420.0,2.94435647]
[1752689254290,0.20712163,119430.0,119420.0,2.95628302]
[1752689254514,0.19874895,119430.0,119420.0,2.78043323]
[1752689254744,0.19874895,119430.0,119420.0,1.60642023]
[1752689256631,0.19874895,119430.0,119420.0,1.77389636]
[1752689256849,0.19874895,119430.0,119420.0,1.77590636]
[1752689257063,0.19874895,119430.0,119420.0,1.80102692]
[1752689257064,0.02291353,119430.0,119420.0,1.80102692]
[1752689257280,0.2154941,119430.0,119420.0,3.20690761]
[1752689257503,0.2154941,119430.0,119420.0,3.21528106]
[1752689257741,0.20712163,119430.0,119420.0,0.49168475]
[1752689257947,0.20712163,119430.0,119420.0,0.50005834]
[1752689258158,0.20712163,119430.0,119420.0,3.59277134]
[1752689258361,0.20712163,119430.0,119420.0,3.60114472]
[1752689258611,0.03128642,119430.0,119420.0,3.60114472]
[1752689258828,0.20710728,119440.0,119430.0,0.53663521]
[1752689259068,0.19873523,119440.0,119430.0,2.22312338]
[1752689259272,0.19873523,119440.0,119430.0,2.39361549]
[1752689259476,0.19873523,119440.0,119430.0,2.40198852]
[1752689260062,0.20089523,119440.0,119430.0,1.02361628]
[1752689260218,0.36917523,119440.0,119430.0,0.61262128]
[1752689260434,0.75695169,119440.0,119430.0,0.42551028]
[1752689260636,0.75695169,119440.0,119420.0,0.00615095]
[1752689260637,0.19037592,119430.0,119420.0,0.00615095]
[1752689260889,0.62010238,119430.0,119420.0,0.00615095]
[1752689261203,0.23448592,119430.0,119420.0,0.00315095]
[1752689261366,0.62010238,119430.0,119420.0,0.00315095]
[1752689261688,0.61794238,119430.0,119420.0,0.00315095]
[1752689262495,0.61794238,119430.0,119420.0,0.00615095]
[1752689262742,0.23232592,119430.0,119420.0,0.00315095]
[1752689262976,0.78818238,119430.0,119420.0,0.00315095]
[1752689263186,0.78818238,119430.0,119420.0,0.00415095]
[1752689263825,0.19037592,119430.0,119420.0,0.00415095]
[1752689263996,0.36045592,119430.0,119420.0,0.50415095]
[1752689264204,0.19037592,119430.0,119420.0,0.07150236]
[1752689264412,0.19037592,119430.0,119420.0,0.07359236]
[1752689264413,0.17583507,119430.0,119420.0,0.07359236]
[1752689264624,0.35404796,119430.0,119420.0,0.49910264]
[1752689264841,0.36858881,119430.0,119420.0,0.49910264]
[1752689265222,0.19874881,119430.0,119420.0,2.7047665]
[1752689265483,0.02511804,119430.0,119420.0,2.91934692]
[1752689265693,0.20932621,119430.0,119420.0,2.91934692]
[1752689266046,0.21549459,119430.0,119420.0,2.91097361]
[1752689266275,0.20712191,119430.0,119420.0,2.90260009]
[1752689266562,0.19874902,119430.0,119420.0,2.90260009]
[1752689266781,0.56761942,119430.0,119420.0,0.44896123]
[1752689266988,0.56761942,119430.0,119420.0,0.42966123]
[1752689267209,0.57077942,119430.0,119420.0,0.34415095]
[1752689268051,0.57077942,119430.0,119420.0,0.41415095]
[1752689268914,0.60947942,119430.0,119420.0,0.07415095]
[1752689269182,0.22386296,119430.0,119420.0,0.07415095]
[1752689269387,0.60947942,119430.0,119420.0,0.07415095]
[1752689269602,0.6949897,119430.0,119420.0,0.07415095]
[1752689269811,0.6949897,119430.0,119420.0,0.00415095]
[1752689270029,0.6949897,119430.0,119420.0,0.00315095]
[1752689271075,0.8633497,119430.0,119420.0,0.00315095]
[1752689273018,0.6949897,119430.0,119420.0,0.00315095]
[1752689273218,0.8625897,119430.0,119420.0,0.00315095]
[1752689273404,0.8645897,119430.0,119420.0,0.00315095]
[1752689274555,0.8667597,119430.0,119420.0,0.00315095]
[1752689279428,0.6991597,119430.0,119420.0,0.00315095]
[1752689279630,0.8653997,119430.0,119420.0,0.00315095]
[1752689281598,0.18400296,119430.0,119420.0,0.00315095]
[1752689281846,0.73521942,119430.0,119420.0,0.00520095]
[1752689282267,0.73738942,119430.0,119420.0,0.00520095]
[1752689282481,0.33490211,119430.0,119420.0,0.50829095]
[1752689282687,0.33490211,119430.0,119420.0,0.00829095]
[1752689282688,0.72051857,119430.0,119420.0,0.00829095]
[1752689282899,0.73505942,119430.0,119420.0,0.00829095]
[1752689283109,0.34944296,119430.0,119420.0,0.00829095]
[1752689283316,0.73505942,119430.0,119420.0,0.00829095]
[1752689283856,0.56961942,119430.0,119420.0,0.00829095]
[1752689284071,0.18400296,119430.0,119420.0,0.02849095]
[1752689284273,0.18400296,119430.0,119420.0,0.21646708]
[1752689284540,0.16946211,119430.0,119420.0,2.21119447]
[1752689284732,0.35966043,119430.0,119420.0,2.21119447]
[1752689284938,0.20912128,119430.0,119420.0,5.31797847]
[1752689285159,0.37416128,119430.0,119420.0,1.13441623]
[1752689285332,0.19237592,119430.0,119420.0,0.63284623]
[1752689285540,0.19237592,119430.0,119420.0,0.80032236]
[1752689285767,0.19037592,119430.0,119420.0,0.88706961]
[1752689285999,0.35545592,119430.0,119420.0,2.25984923]
[1752689286204,0.35545592,119430.0,119420.0,1.36928523]
[1752689286424,0.35545592,119430.0,119420.0,1.01471503]
[1752689286810,0.16744979,119440.0,119430.0,0.17583507]
[1752689287009,0.34098212,119440.0,119430.0,3.82005524]
[1752689287211,0.35552297,119440.0,119430.0,3.72098924]
[1752689287428,0.36389509,119440.0,119430.0,2.94277706]
[1752689287633,0.35552297,119440.0,119430.0,2.92603135]
[1752689288145,0.19036297,119440.0,119430.0,2.92603149]
[1752689288356,0.35544297,119440.0,119430.0,2.92603149]
[1752689288563,0.34707064,119440.0,119430.0,2.92603149]
[1752689288771,0.34707064,119440.0,119430.0,2.87881149]
[1752689289007,0.34707064,119440.0,119430.0,2.08681128]
[1752689289427,0.7326871,119440.0,119430.0,0.00514]
[1752689290053,0.7348571,119440.0,119430.0,0.00205]
[1752689290973,0.7326871,119440.0,119430.0,0.00514]
[1752689291402,0.7316471,119440.0,119430.0,0.00514]
[1752689291617,0.7316471,119440.0,119430.0,0.02544]
[1752689292110,0.34603064,119440.0,119430.0,0.02544]
[1752689292318,0.7316471,119440.0,119430.0,0.02544]
[1752689292993,0.7316471,119440.0,119430.0,0.00514]
[1752689293636,0.34603064,119440.0,119430.0,0.00514]
[1752689293857,0.7316471,119440.0,119430.0,0.00514]
[1752689294314,0.34603064,119440.0,119430.0,0.00514]
[1752689294544,0.7316471,119440.0,119430.0,0.00514]
[1752689294775,0.34547064,119440.0,119430.0,0.00514]
[1752689294998,0.7310871,119440.0,119430.0,0.00514]
[1752689296527,0.34547064,119440.0,119430.0,0.00514]
[1752689296766,0.7310871,119440.0,119430.0,0.00514]
[1752689296983,0.7302471,119440.0,119430.0,0.00514]
[1752689298365,0.34666064,119440.0,119430.0,0.00205]
[1752689298827,0.7322771,119440.0,119430.0,0.00205]
[1752689299288,0.34666064,119440.0,119430.0,0.00205]
[1752689299507,0.7302471,119440.0,119430.0,0.005]
[1752689300870,0.7302471,119440.0,119430.0,0.0133034]
[1752689300871,0.7322771,119440.0,119430.0,0.0133034]
[1752689301079,0.7322771,119440.0,119430.0,0.005]
[1752689301923,0.19037592,119430.0,119420.0,0.44855095]
[1752689302142,0.19037592,119430.0,119420.0,1.22994023]
[1752689302560,0.19037592,119430.0,119420.0,1.23204023]
[1752689302774,0.19037592,119430.0,119420.0,1.01643523]
[1752689302984,0.19037592,119430.0,119420.0,0.81005223]
[1752689303843,0.19037592,119430.0,119420.0,0.81400223]
[1752689304690,0.00322,119450.0,119430.0,0.34837254]
[1752689304882,0.19254847,119450.0,119440.0,5.6040023]
[1752689305102,0.02511209,119460.0,119450.0,0.5497982]
[1752689305308,0.01674123,119460.0,119450.0,3.12999467]
[1752689305530,0.01674116,119460.0,119450.0,3.13294467]
[1752689305960,0.03965287,119460.0,119450.0,3.13294467]
[1752689306158,0.03128201,119460.0,119450.0,3.13294467]
[1752689306359,0.03965273,119460.0,119450.0,3.13294467]
[1752689306502,0.003,119470.0,119460.0,0.21826156]
[1752689306707,0.003,119470.0,119460.0,4.15667135]
[1752689306923,0.003,119470.0,119460.0,4.49667135]
[1752689307139,0.01973969,119470.0,119460.0,2.87687235]
[1752689307404,0.01973969,119470.0,119460.0,1.70101435]
[1752689307599,0.0286126,119470.0,119460.0,5.81899235]
[1752689307806,0.0286126,119470.0,119460.0,3.20645035]
[1752689308005,0.02024244,119470.0,119460.0,3.20645035]
[1752689308281,0.00350275,119470.0,119460.0,3.20645035]
[1752689308617,0.01187249,119470.0,119460.0,5.81899235]
[1752689308829,0.00350275,119470.0,119460.0,5.81899235]
[1752689309029,0.01187249,119470.0,119460.0,5.81899235]
[1752689309214,0.00350275,119470.0,119460.0,5.81899235]
[1752689309621,0.00350275,119470.0,119460.0,5.72988135]
[1752689309842,0.02024251,119470.0,119460.0,5.72988135]
[1752689310047,0.0286126,119470.0,119460.0,5.66310835]
[1752689310275,0.0286126,119470.0,119460.0,5.63710835]
[1752689310481,0.20438894,119470.0,119460.0,4.79805319]
[1752689310770,0.02024244,119470.0,119460.0,4.95577935]
[1752689311087,0.02861246,119470.0,119460.0,5.65866435]
[1752689311325,0.02861253,119470.0,119460.0,5.82844335]
[1752689311464,0.03698269,119470.0,119460.0,5.37546035]
[1752689311673,0.02024244,119470.0,119460.0,5.47822435]
[1752689311870,0.02024244,119470.0,119460.0,5.82844335]
[1752689312510,0.02861253,119470.0,119460.0,5.82844335]
[1752689312711,0.01187249,119470.0,119460.0,5.82844335]
[1752689312911,0.01187249,119470.0,119460.0,0.82844335]
[1752689313110,0.01187249,119470.0,119460.0,5.82844335]
[1752689313315,0.02861225,119470.0,119460.0,5.75522735]
[1752689313516,0.20438887,119470.0,119460.0,5.30320698]
[1752689313766,0.03698276,119470.0,119460.0,5.05389314]
[1752689313967,0.2127591,119470.0,119460.0,5.03715198]
[1752689314124,0.03698318,119470.0,119460.0,5.24017428]
[1752689314345,0.02861295,119470.0,119460.0,5.24017379]
[1752689314564,0.02861295,119470.0,119460.0,5.23180321]
[1752689314764,0.02861295,119470.0,119460.0,5.23180328]
[1752689314983,0.02861295,119470.0,119460.0,0.83637379]
[1752689315183,0.19601899,119470.0,119460.0,5.82800328]
[1752689315387,0.20438922,119470.0,119460.0,5.8196327]
[1752689315950,0.02024244,119470.0,119460.0,0.82800321]
[1752689316173,0.02024244,119470.0,119460.0,5.82800321]
[1752689316373,0.02861253,119470.0,119460.0,5.82800321]
[1752689317137,0.19601899,119470.0,119460.0,4.21284633]
[1752689317364,0.18764904,119470.0,119460.0,3.98795198]
[1752689317568,0.17927895,119470.0,119460.0,4.65124219]
[1752689317775,0.17090879,119470.0,119460.0,4.68237733]
[1752689317982,0.17090879,119470.0,119460.0,5.57962919]
[1752689318197,0.1960192,119470.0,119460.0,5.81126184]
[1752689318406,0.1960192,119470.0,119460.0,5.8196327]
[1752689318645,0.1960192,119470.0,119460.0,5.83637379]
[1752689318856,0.02024244,119470.0,119460.0,5.78520779]
[1752689319067,0.00350275,119470.0,119460.0,5.78520779]
[1752689319283,0.01187249,119470.0,119460.0,5.83637379]
[1752689319503,0.02861232,119470.0,119460.0,4.72125179]
[1752689319925,0.01187242,119470.0,119460.0,4.72125179]
[1752689320129,0.02024223,119470.0,119460.0,5.10686825]
[1752689320333,0.02024223,119470.0,119460.0,0.83637379]
[1752689320540,0.02024223,119470.0,119460.0,5.83637379]
[1752689320746,0.03698227,119470.0,119460.0,5.83637379]
[1752689320949,0.02024223,119470.0,119460.0,5.83637379]
[1752689321652,0.01187242,119470.0,119460.0,5.83637379]
[1752689322055,0.00350275,119470.0,119460.0,6.22199025]
[1752689322261,0.00350275,119470.0,119460.0,6.24710825]
[1752689322842,0.00350275,119470.0,119460.0,5.86149179]
[1752689323044,0.00350275,119470.0,119460.0,6.24610825]
[1752689323255,0.00350275,119470.0,119460.0,6.25110825]
[1752689325109,0.03698255,119470.0,119460.0,2.01117498]
[1752689325330,0.21275875,119470.0,119460.0,1.29706956]
[1752689325747,0.04535271,119470.0,119460.0,1.28032207]
[1752689325963,0.04535257,119470.0,119460.0,1.27532207]
[1752689326587,0.58469626,119470.0,119460.0,0.08851028]
[1752689326813,0.61829626,119470.0,119460.0,0.08851028]
[1752689327317,0.61829626,119470.0,119460.0,0.42851028]
[1752689327554,0.2326798,119470.0,119460.0,0.42851028]
[1752689327787,0.61829626,119470.0,119460.0,0.42551028]
[1752689328020,0.61829626,119470.0,119460.0,0.08651028]
[1752689328247,0.61829626,119470.0,119460.0,0.42651028]
[1752689329388,0.2326798,119470.0,119460.0,0.42651028]
[1752689329640,0.61829626,119470.0,119460.0,0.341]
[1752689330609,0.2326798,119470.0,119460.0,0.341]
[1752689331268,0.61829626,119470.0,119460.0,0.34]
[1752689331946,0.77853626,119470.0,119460.0,0.34]
[1752689334188,0.22353176,119460.0,119450.0,0.02546179]
[1752689334405,0.61123822,119460.0,119450.0,0.02546179]
[1752689334650,0.19220563,119450.0,119440.0,0.49944]
[1752689334876,0.18106563,119450.0,119440.0,0.49944]
[1752689336385,0.18106563,119450.0,119440.0,0.52410224]
[1752689338560,0.18106563,119450.0,119440.0,2.90304324]
[1752689338793,0.18106563,119450.0,119440.0,1.42197724]
[1752689339024,0.18106563,119450.0,119440.0,0.98080424]
[1752689339921,0.18106563,119450.0,119440.0,0.70590724]
[1752689341817,0.18106563,119450.0,119440.0,0.52410224]
[1752689342488,0.19826563,119450.0,119440.0,0.52410224]
[1752689342704,0.60058209,119450.0,119440.0,0.52410224]
[1752689342917,0.77372294,119450.0,119440.0,0.36466224]
[1752689343146,0.19874867,119430.0,119420.0,0.24005525]
[1752689343362,0.20400867,119430.0,119420.0,1.24344953]
[1752689344214,0.20400867,119430.0,119420.0,1.58344953]
[1752689344419,0.20400867,119430.0,119420.0,1.42500048]
[1752689344848,0.16746051,119440.0,119430.0,2.16501711]
[1752689345050,0.20711821,119440.0,119430.0,5.58291723]
[1752689345263,0.19871811,119450.0,119440.0,0.51582035]
[1752689345465,0.19254784,119450.0,119440.0,4.15693275]
[1752689345728,0.21546032,119450.0,119440.0,4.0153048]
[1752689345907,0.21546032,119450.0,119440.0,0.6200648]
[1752689346144,0.21546032,119450.0,119440.0,3.7354448]
[1752689346570,0.20708925,119450.0,119440.0,3.71870063]
[1752689346783,0.19871797,119450.0,119440.0,1.49526328]
[1752689346991,0.17871797,119450.0,119440.0,0.93790328]
[1752689347209,0.17871797,119450.0,119440.0,1.10535137]
[1752689347413,0.17871797,119450.0,119440.0,1.11372377]